[Event "Titled Tuesday Blitz December 20 Early 2022"]
[White "Zhigalko_Sergei"]
[Black "Gnechko_Ruslan"]
[WhiteElo "2876"]
[BlackElo "2448"]
[Result "1-0"]
[Round "01"]
[TimeControl "180+2"]
[Date "2022.12.20"]
[WhiteClock "0:00:06"]
[BlackClock "0:00:14"]

1. e4 {[%clk 0:03:00]}  c5 {[%clk 0:02:58]} 2. Nf3 {[%clk 0:02:59]}  e6 {[%clk 0:02:58]} 3. c3 {[%clk 0:02:59]}  Nf6 {[%clk 0:02:57]} 4. e5 {[%clk 0:03:00]}  Nd5 {[%clk 0:02:56]} 5. Bc4 {[%clk 0:03:00]}  Nc6 {[%clk 0:02:55]} 6. O-O {[%clk 0:03:00]}  Be7 {[%clk 0:02:55]} 7. d4 {[%clk 0:03:00]}  cxd4 {[%clk 0:02:54]} 8. cxd4 {[%clk 0:03:01]}  O-O {[%clk 0:02:54]} 9. Bd2 {[%clk 0:03:01]}  d6 {[%clk 0:02:54]} 10. Nc3 {[%clk 0:03:01]}  Nxc3 {[%clk 0:02:53]} 11. Bxc3 {[%clk 0:03:02]}  dxe5 {[%clk 0:02:53]} 12. dxe5 {[%clk 0:03:03]}  Bd7 {[%clk 0:02:38]} 13. Qe2 {[%clk 0:03:03]}  Rc8 {[%clk 0:02:38]} 14. Bd3 {[%clk 0:03:02]}  g6 {[%clk 0:01:59]} 15. a3 {[%clk 0:03:00]}  a6 {[%clk 0:01:48]} 16. Rfe1 {[%clk 0:02:59]}  Qc7 {[%clk 0:01:48]} 17. h4 {[%clk 0:02:59]}  Na7 {[%clk 0:01:32]} 18. Bd4 {[%clk 0:02:51]}  Qb8 {[%clk 0:01:21]} 19. Qe3 {[%clk 0:02:26]}  Nb5 {[%clk 0:01:14]} 20. Bxb5 {[%clk 0:02:13]}  Bxb5 {[%clk 0:01:11]} 21. Qh6 {[%clk 0:02:13]}  Rfd8 {[%clk 0:01:08]} 22. Bb6 {[%clk 0:02:05]}  Rd3 {[%clk 0:00:58]} 23. Ng5 {[%clk 0:02:03]}  Bxg5 {[%clk 0:00:58]} 24. Qxg5 {[%clk 0:02:03]}  Rc6 {[%clk 0:00:49]} 25. Be3 {[%clk 0:01:50]}  Qd8 {[%clk 0:00:45]} 26. Qh6 {[%clk 0:01:50]}  Rc4 {[%clk 0:00:41]} 27. h5 {[%clk 0:01:34]}  Rg4 {[%clk 0:00:35]} 28. f3 {[%clk 0:01:25]}  Rh4 {[%clk 0:00:30]} 29. Qg5 {[%clk 0:00:44]}  Rxh5 {[%clk 0:00:26]} 30. Qxd8+ {[%clk 0:00:41]}  Rxd8 {[%clk 0:00:27]} 31. Bf4 {[%clk 0:00:37]}  Bc6 {[%clk 0:00:25]} 32. Rad1 {[%clk 0:00:36]}  Rd5 {[%clk 0:00:24]} 33. Rxd5 {[%clk 0:00:34]}  Bxd5 {[%clk 0:00:25]} 34. Rc1 {[%clk 0:00:34]}  Bc6 {[%clk 0:00:25]} 35. g4 {[%clk 0:00:08]}  Rh3 {[%clk 0:00:24]} 36. Rxc6 {[%clk 0:00:05]}  bxc6 {[%clk 0:00:23]} 37. Kg2 {[%clk 0:00:05]}  Rh4 {[%clk 0:00:21]} 38. Bg5 {[%clk 0:00:05]}  Rxg4+ {[%clk 0:00:14]} 39. fxg4 {[%clk 0:00:06]}  Kf8 {[%clk 0:00:14]} 40. Kf3 {[%clk 0:00:05]}  Ke8 {[%clk 0:00:15]} 41. Bh6 {[%clk 0:00:05]}  c5 {[%clk 0:00:14]} 42. Ke4 {[%clk 0:00:04]}  Kd7 {[%clk 0:00:15]} 43. Kd3 {[%clk 0:00:05]}  Kc6 {[%clk 0:00:15]} 44. Kc4 {[%clk 0:00:05]}  Kb6 {[%clk 0:00:13]} 45. a4 {[%clk 0:00:05]}  Kc6 {[%clk 0:00:14]} 46. a5 {[%clk 0:00:06]} 1-0


[Site "https://www.chess.com"]

[Event "Titled Tuesday Blitz December 20 Early 2022"]
[White "annacramling"]
[Black "GP9isback23"]
[WhiteElo "2219"]
[BlackElo "2577"]
[Result "0-1"]
[Round "01"]
[TimeControl "180+2"]
[Date "2022.12.20"]
[WhiteClock "0:00:01"]
[BlackClock "0:00:10"]

1. d4 {[%clk 0:03:00]}  Nf6 {[%clk 0:02:57]} 2. c4 {[%clk 0:02:57]}  e6 {[%clk 0:02:56]} 3. Nc3 {[%clk 0:02:57]}  Bb4 {[%clk 0:02:55]} 4. Qc2 {[%clk 0:02:57]}  d5 {[%clk 0:02:54]} 5. cxd5 {[%clk 0:02:51]}  exd5 {[%clk 0:02:54]} 6. Bg5 {[%clk 0:02:51]}  Nbd7 {[%clk 0:02:51]} 7. e3 {[%clk 0:02:51]}  c5 {[%clk 0:02:51]} 8. Nf3 {[%clk 0:02:49]}  Qa5 {[%clk 0:02:50]} 9. Bd3 {[%clk 0:02:39]}  O-O {[%clk 0:02:44]} 10. O-O {[%clk 0:02:37]}  Bxc3 {[%clk 0:02:40]} 11. bxc3 {[%clk 0:02:36]}  b6 {[%clk 0:02:40]} 12. Ne5 {[%clk 0:02:30]}  h6 {[%clk 0:02:35]} 13. Bxf6 {[%clk 0:01:30]}  Nxf6 {[%clk 0:02:30]} 14. Nc6 {[%clk 0:01:30]}  Qa3 {[%clk 0:02:24]} 15. c4 {[%clk 0:00:32]}  dxc4 {[%clk 0:02:08]} 16. Bxc4 {[%clk 0:00:32]}  cxd4 {[%clk 0:02:03]} 17. Nxd4 {[%clk 0:00:28]}  Ba6 {[%clk 0:01:56]} 18. Bxa6 {[%clk 0:00:18]}  Qxa6 {[%clk 0:01:55]} 19. Nc6 {[%clk 0:00:19]}  Rfe8 {[%clk 0:01:52]} 20. Rac1 {[%clk 0:00:18]}  Qa3 {[%clk 0:01:48]} 21. Rfd1 {[%clk 0:00:17]}  Ne4 {[%clk 0:01:39]} 22. Nd4 {[%clk 0:00:13]}  a6 {[%clk 0:01:08]} 23. Qc6 {[%clk 0:00:10]}  b5 {[%clk 0:01:03]} 24. Qc2 {[%clk 0:00:05]}  Rad8 {[%clk 0:01:00]} 25. Qb3 {[%clk 0:00:04]}  Qxb3 {[%clk 0:00:56]} 26. axb3 {[%clk 0:00:05]}  Rc8 {[%clk 0:00:49]} 27. f3 {[%clk 0:00:03]}  Nc3 {[%clk 0:00:48]} 28. Re1 {[%clk 0:00:03]}  Nd5 {[%clk 0:00:46]} 29. e4 {[%clk 0:00:02]}  Nb4 {[%clk 0:00:42]} 30. Red1 {[%clk 0:00:02]}  Red8 {[%clk 0:00:40]} 31. Rxc8 {[%clk 0:00:01]}  Rxc8 {[%clk 0:00:41]} 32. Nf5 {[%clk 0:00:02]}  Rc7 {[%clk 0:00:30]} 33. Kf2 {[%clk 0:00:02]}  Kh7 {[%clk 0:00:29]} 34. Ke3 {[%clk 0:00:02]}  g6 {[%clk 0:00:29]} 35. Nd4 {[%clk 0:00:02]}  Rc3+ {[%clk 0:00:27]} 36. Kf4 {[%clk 0:00:02]}  Kg7 {[%clk 0:00:24]} 37. g4 {[%clk 0:00:02]}  Nc6 {[%clk 0:00:21]} 38. h4 {[%clk 0:00:02]}  Nxd4 {[%clk 0:00:21]} 39. Rxd4 {[%clk 0:00:02]}  Rxb3 {[%clk 0:00:22]} 40. g5 {[%clk 0:00:02]}  hxg5+ {[%clk 0:00:22]} 41. hxg5 {[%clk 0:00:03]}  a5 {[%clk 0:00:21]} 42. Kg4 {[%clk 0:00:03]}  a4 {[%clk 0:00:21]} 43. f4 {[%clk 0:00:04]}  Rb1 {[%clk 0:00:15]} 44. f5 {[%clk 0:00:03]}  Rg1+ {[%clk 0:00:15]} 45. Kf4 {[%clk 0:00:04]}  Rf1+ {[%clk 0:00:15]} 46. Ke5 {[%clk 0:00:04]}  gxf5 {[%clk 0:00:12]} 47. exf5 {[%clk 0:00:04]}  Re1+ {[%clk 0:00:11]} 48. Kf4 {[%clk 0:00:03]}  a3 {[%clk 0:00:10]} 49. f6+ {[%clk 0:00:01]}  Kg6 {[%clk 0:00:10]} 0-1


[Site "https://www.chess.com"]

[Event "Titled Tuesday Blitz December 20 Early 2022"]
[White "bardiya_Daneshvar"]
[Black "Levanovsky, Vladimir"]
[BlackFideId "24119784"]
[WhiteElo "2903"]
[BlackElo "1869"]
[Result "1-0"]
[Round "01"]
[TimeControl "180+2"]
[Date "2022.12.20"]
[WhiteClock "0:00:39"]
[BlackClock "0:00:05"]

1. b3 {[%clk 0:02:59]}  e5 {[%clk 0:02:58]} 2. Bb2 {[%clk 0:02:59]}  Nc6 {[%clk 0:02:58]} 3. e3 {[%clk 0:02:59]}  d5 {[%clk 0:02:57]} 4. Bb5 {[%clk 0:02:59]}  Bd6 {[%clk 0:02:56]} 5. Nf3 {[%clk 0:02:58]}  f6 {[%clk 0:02:54]} 6. d4 {[%clk 0:02:58]}  e4 {[%clk 0:02:53]} 7. Nfd2 {[%clk 0:02:59]}  f5 {[%clk 0:02:52]} 8. c4 {[%clk 0:02:58]}  a6 {[%clk 0:02:51]} 9. Ba4 {[%clk 0:02:52]}  b5 {[%clk 0:02:49]} 10. cxb5 {[%clk 0:02:51]}  Nb4 {[%clk 0:02:49]} 11. bxa6+ {[%clk 0:02:37]}  c6 {[%clk 0:02:47]} 12. O-O {[%clk 0:02:33]}  Ne7 {[%clk 0:02:46]} 13. Ba3 {[%clk 0:02:22]}  Bxa6 {[%clk 0:02:40]} 14. Bxb4 {[%clk 0:02:20]}  Bxb4 {[%clk 0:02:36]} 15. Re1 {[%clk 0:02:20]}  O-O {[%clk 0:02:32]} 16. a3 {[%clk 0:02:20]}  Bd6 {[%clk 0:02:28]} 17. Nc3 {[%clk 0:02:17]}  f4 {[%clk 0:02:17]} 18. Qg4 {[%clk 0:02:08]}  Bc8 {[%clk 0:02:15]} 19. Qh4 {[%clk 0:02:06]}  f3 {[%clk 0:01:54]} 20. gxf3 {[%clk 0:01:56]}  exf3 {[%clk 0:01:55]} 21. Kh1 {[%clk 0:01:56]}  Rf6 {[%clk 0:01:44]} 22. Rg1 {[%clk 0:01:55]}  Nf5 {[%clk 0:01:32]} 23. Qg5 {[%clk 0:01:48]}  h6 {[%clk 0:01:11]} 24. Qh5 {[%clk 0:01:47]}  Bd7 {[%clk 0:00:52]} 25. Nxf3 {[%clk 0:01:39]}  Qe7 {[%clk 0:00:49]} 26. Rg2 {[%clk 0:01:18]}  Raf8 {[%clk 0:00:41]} 27. Rag1 {[%clk 0:01:15]}  Be8 {[%clk 0:00:39]} 28. Qh3 {[%clk 0:01:11]}  R8f7 {[%clk 0:00:27]} 29. Nh4 {[%clk 0:01:03]}  Bd7 {[%clk 0:00:22]} 30. Nxf5 {[%clk 0:00:55]}  Bxf5 {[%clk 0:00:23]} 31. Qh4 {[%clk 0:00:51]}  g5 {[%clk 0:00:18]} 32. Bxc6 {[%clk 0:00:45]}  Kf8 {[%clk 0:00:18]} 33. Rxg5 {[%clk 0:00:43]}  Bh7 {[%clk 0:00:10]} 34. R5g2 {[%clk 0:00:41]}  Rxf2 {[%clk 0:00:08]} 35. Qxh6+ {[%clk 0:00:40]}  Rg7 {[%clk 0:00:05]} 36. Rxf2+ {[%clk 0:00:39]} 1-0


[Site "https://www.chess.com"]

[Event "Titled Tuesday Blitz December 20 Early 2022"]
[White "dirk_da_player"]
[Black "Talcrifice"]
[WhiteElo "2339"]
[BlackElo "2621"]
[Result "0-1"]
[Round "01"]
[TimeControl "180+2"]
[Date "2022.12.20"]
[WhiteClock "0:00:20"]
[BlackClock "0:01:04"]

1. e4 {[%clk 0:02:59]}  e5 {[%clk 0:02:59]} 2. Nf3 {[%clk 0:02:59]}  Nc6 {[%clk 0:03:00]} 3. Bc4 {[%clk 0:02:59]}  Bc5 {[%clk 0:02:58]} 4. O-O {[%clk 0:02:55]}  Nf6 {[%clk 0:02:58]} 5. d3 {[%clk 0:02:55]}  a6 {[%clk 0:02:56]} 6. Nc3 {[%clk 0:02:54]}  d6 {[%clk 0:02:55]} 7. Be3 {[%clk 0:02:54]}  Bxe3 {[%clk 0:02:51]} 8. fxe3 {[%clk 0:02:55]}  O-O {[%clk 0:02:51]} 9. Qe1 {[%clk 0:02:55]}  Na5 {[%clk 0:02:50]} 10. Bb3 {[%clk 0:02:55]}  c6 {[%clk 0:02:45]} 11. Nh4 {[%clk 0:02:55]}  Nxb3 {[%clk 0:02:43]} 12. axb3 {[%clk 0:02:55]}  g6 {[%clk 0:02:40]} 13. Qg3 {[%clk 0:02:28]}  Nh5 {[%clk 0:02:38]} 14. Qf2 {[%clk 0:02:28]}  Be6 {[%clk 0:02:31]} 15. h3 {[%clk 0:02:16]}  Qg5 {[%clk 0:02:28]} 16. Nf3 {[%clk 0:02:09]}  Qg3 {[%clk 0:02:21]} 17. Qxg3 {[%clk 0:02:08]}  Nxg3 {[%clk 0:02:22]} 18. Rfe1 {[%clk 0:02:08]}  f6 {[%clk 0:02:18]} 19. Kh2 {[%clk 0:01:59]}  Nh5 {[%clk 0:02:17]} 20. g4 {[%clk 0:01:58]}  Ng7 {[%clk 0:02:17]} 21. Rf1 {[%clk 0:01:54]}  h6 {[%clk 0:01:59]} 22. Rf2 {[%clk 0:01:53]}  Rf7 {[%clk 0:01:54]} 23. Raf1 {[%clk 0:01:52]}  b5 {[%clk 0:01:53]} 24. b4 {[%clk 0:01:48]}  a5 {[%clk 0:01:52]} 25. bxa5 {[%clk 0:01:42]}  b4 {[%clk 0:01:50]} 26. Ne2 {[%clk 0:01:27]}  Rxa5 {[%clk 0:01:49]} 27. Nh4 {[%clk 0:01:27]}  g5 {[%clk 0:01:46]} 28. Nf5 {[%clk 0:01:14]}  Nxf5 {[%clk 0:01:45]} 29. gxf5 {[%clk 0:01:10]}  Bc8 {[%clk 0:01:42]} 30. b3 {[%clk 0:01:09]}  Kg7 {[%clk 0:01:33]} 31. Kg3 {[%clk 0:01:09]}  Rfa7 {[%clk 0:01:31]} 32. d4 {[%clk 0:01:02]}  Ra1 {[%clk 0:01:26]} 33. Nc1 {[%clk 0:00:58]}  exd4 {[%clk 0:01:22]} 34. exd4 {[%clk 0:00:58]}  Re7 {[%clk 0:01:22]} 35. Kf3 {[%clk 0:00:58]}  Bd7 {[%clk 0:01:18]} 36. Nd3 {[%clk 0:00:58]}  Rxf1 {[%clk 0:01:15]} 37. Rxf1 {[%clk 0:00:59]}  d5 {[%clk 0:01:15]} 38. exd5 {[%clk 0:00:57]}  cxd5 {[%clk 0:01:15]} 39. Nxb4 {[%clk 0:00:57]}  Bxf5 {[%clk 0:01:14]} 40. Kg3 {[%clk 0:00:55]}  Be4 {[%clk 0:01:13]} 41. c4 {[%clk 0:00:54]}  Rb7 {[%clk 0:01:06]} 42. cxd5 {[%clk 0:00:20]}  Rxb4 {[%clk 0:01:04]} 0-1


[Site "https://www.chess.com"]

[Event "Titled Tuesday Blitz December 20 Early 2022"]
[White "fks_stal_mielec"]
[Black "DefiantChair"]
[WhiteElo "2284"]
[BlackElo "2631"]
[Result "0-1"]
[Round "01"]
[TimeControl "180+2"]
[Date "2022.12.20"]
[WhiteClock "0:00:02"]
[BlackClock "0:01:19"]

1. d4 {[%clk 0:03:00]}  Nf6 {[%clk 0:02:59]} 2. c4 {[%clk 0:03:01]}  e6 {[%clk 0:02:59]} 3. Nc3 {[%clk 0:03:02]}  Bb4 {[%clk 0:03:00]} 4. Qc2 {[%clk 0:03:02]}  O-O {[%clk 0:02:58]} 5. e4 {[%clk 0:03:02]}  d5 {[%clk 0:02:56]} 6. e5 {[%clk 0:03:02]}  Ne4 {[%clk 0:02:53]} 7. Bd3 {[%clk 0:03:02]}  c5 {[%clk 0:02:42]} 8. a3 {[%clk 0:02:33]}  Ba5 {[%clk 0:02:32]} 9. Bxe4 {[%clk 0:02:28]}  dxe4 {[%clk 0:02:32]} 10. dxc5 {[%clk 0:02:25]}  Bxc3+ {[%clk 0:02:15]} 11. Qxc3 {[%clk 0:02:23]}  Nc6 {[%clk 0:02:12]} 12. b4 {[%clk 0:02:10]}  a5 {[%clk 0:02:12]} 13. b5 {[%clk 0:01:49]}  Nd4 {[%clk 0:02:08]} 14. Bb2 {[%clk 0:01:40]}  Nf5 {[%clk 0:02:08]} 15. a4 {[%clk 0:00:46]}  Qg5 {[%clk 0:02:07]} 16. g3 {[%clk 0:00:40]}  Bd7 {[%clk 0:02:03]} 17. Nh3 {[%clk 0:00:40]}  Qg4 {[%clk 0:02:00]} 18. Nf4 {[%clk 0:00:40]}  Rad8 {[%clk 0:01:53]} 19. h3 {[%clk 0:00:40]}  Qg5 {[%clk 0:01:52]} 20. Rd1 {[%clk 0:00:36]}  Bc8 {[%clk 0:01:50]} 21. O-O {[%clk 0:00:27]}  e3 {[%clk 0:01:50]} 22. Rxd8 {[%clk 0:00:25]}  Rxd8 {[%clk 0:01:48]} 23. Ng2 {[%clk 0:00:21]}  exf2+ {[%clk 0:01:43]} 24. Rxf2 {[%clk 0:00:20]}  Nxg3 {[%clk 0:01:40]} 25. Qf3 {[%clk 0:00:14]}  Nf5 {[%clk 0:01:37]} 26. h4 {[%clk 0:00:12]}  Qg6 {[%clk 0:01:36]} 27. Kh2 {[%clk 0:00:10]}  Rf8 {[%clk 0:01:31]} 28. Rd2 {[%clk 0:00:08]}  Qh6 {[%clk 0:01:30]} 29. Qf2 {[%clk 0:00:07]}  Nxh4 {[%clk 0:01:27]} 30. Nxh4 {[%clk 0:00:06]}  g5 {[%clk 0:01:27]} 31. Qg3 {[%clk 0:00:05]}  Kh8 {[%clk 0:01:25]} 32. Rg2 {[%clk 0:00:02]}  gxh4 {[%clk 0:01:19]} 0-1


[Site "https://www.chess.com"]

[Event "Titled Tuesday Blitz December 20 Early 2022"]
[White "forevery0ung"]
[Black "MusicCityMaster"]
[WhiteElo "2661"]
[BlackElo "2329"]
[Result "1-0"]
[Round "01"]
[TimeControl "180+2"]
[Date "2022.12.20"]
[WhiteClock "0:00:41"]
[BlackClock "0:00:36"]

1. c4 {[%clk 0:02:58]}  e5 {[%clk 0:02:59]} 2. Nc3 {[%clk 0:02:59]}  Nc6 {[%clk 0:02:59]} 3. g3 {[%clk 0:02:59]}  f5 {[%clk 0:02:59]} 4. Bg2 {[%clk 0:02:59]}  Nf6 {[%clk 0:03:00]} 5. d3 {[%clk 0:02:59]}  Bb4 {[%clk 0:02:58]} 6. Bd2 {[%clk 0:02:57]}  O-O {[%clk 0:02:58]} 7. a3 {[%clk 0:02:55]}  Bxc3 {[%clk 0:02:58]} 8. Bxc3 {[%clk 0:02:56]}  d6 {[%clk 0:02:58]} 9. e3 {[%clk 0:02:55]}  Kh8 {[%clk 0:02:58]} 10. Ne2 {[%clk 0:02:55]}  Ne7 {[%clk 0:02:57]} 11. f4 {[%clk 0:02:52]}  Ng6 {[%clk 0:02:46]} 12. O-O {[%clk 0:02:50]}  Qe7 {[%clk 0:02:41]} 13. Qd2 {[%clk 0:02:50]}  c6 {[%clk 0:02:40]} 14. Rae1 {[%clk 0:02:49]}  e4 {[%clk 0:02:36]} 15. dxe4 {[%clk 0:02:37]}  Nxe4 {[%clk 0:02:34]} 16. Qc2 {[%clk 0:02:33]}  Bd7 {[%clk 0:02:16]} 17. Nd4 {[%clk 0:02:30]}  Rae8 {[%clk 0:02:15]} 18. b4 {[%clk 0:02:23]}  c5 {[%clk 0:02:14]} 19. Nb3 {[%clk 0:02:15]}  b6 {[%clk 0:02:10]} 20. Bb2 {[%clk 0:02:07]}  Bc6 {[%clk 0:02:10]} 21. Re2 {[%clk 0:02:03]}  Rc8 {[%clk 0:02:05]} 22. Rd1 {[%clk 0:02:00]}  d5 {[%clk 0:01:56]} 23. b5 {[%clk 0:01:18]}  dxc4 {[%clk 0:01:53]} 24. Qxc4 {[%clk 0:01:12]}  Nd6 {[%clk 0:01:30]} 25. Rxd6 {[%clk 0:01:06]}  Bxg2 {[%clk 0:01:30]} 26. Rxg6 {[%clk 0:00:55]}  hxg6 {[%clk 0:01:25]} 27. Kxg2 {[%clk 0:00:55]}  Rfd8 {[%clk 0:01:22]} 28. Be5 {[%clk 0:00:55]}  Rd7 {[%clk 0:01:19]} 29. Nd2 {[%clk 0:00:53]}  Rcd8 {[%clk 0:01:19]} 30. Nf3 {[%clk 0:00:53]}  Rd1 {[%clk 0:01:18]} 31. e4 {[%clk 0:00:52]}  Qb7 {[%clk 0:01:05]} 32. Ng5 {[%clk 0:00:48]}  R8d3 {[%clk 0:00:54]} 33. Qe6 {[%clk 0:00:42]}  fxe4 {[%clk 0:00:36]} 34. Qe8# {[%clk 0:00:41]} 1-0


[Site "https://www.chess.com"]

[Event "Titled Tuesday Blitz December 20 Early 2022"]
[White "gammagramma"]
[Black "Luks, Artur"]
[BlackFideId "21808856"]
[WhiteElo "2716"]
[BlackElo "1577"]
[Result "0-1"]
[Round "01"]
[TimeControl "180+2"]
[Date "2022.12.20"]
[WhiteClock "0:00:03"]
[BlackClock "0:00:28"]

1. Nf3 {[%clk 0:02:08]}  d5 {[%clk 0:02:58]} 2. g3 {[%clk 0:02:09]}  Nc6 {[%clk 0:02:57]} 3. Bg2 {[%clk 0:02:10]}  e5 {[%clk 0:02:57]} 4. d4 {[%clk 0:02:10]}  e4 {[%clk 0:02:57]} 5. Ne5 {[%clk 0:02:11]}  Bd6 {[%clk 0:02:56]} 6. Nxc6 {[%clk 0:02:11]}  bxc6 {[%clk 0:02:57]} 7. c4 {[%clk 0:02:12]}  Nf6 {[%clk 0:02:55]} 8. Nc3 {[%clk 0:02:12]}  h6 {[%clk 0:02:53]} 9. O-O {[%clk 0:02:08]}  O-O {[%clk 0:02:52]} 10. f3 {[%clk 0:02:08]}  exf3 {[%clk 0:02:49]} 11. exf3 {[%clk 0:02:05]}  dxc4 {[%clk 0:02:47]} 12. Qa4 {[%clk 0:02:05]}  Bd7 {[%clk 0:02:43]} 13. Qxc4 {[%clk 0:02:04]}  Rb8 {[%clk 0:02:41]} 14. b3 {[%clk 0:01:53]}  Be6 {[%clk 0:02:04]} 15. Qd3 {[%clk 0:01:49]}  Qd7 {[%clk 0:01:56]} 16. Be3 {[%clk 0:01:35]}  Bf5 {[%clk 0:01:54]} 17. Qa6 {[%clk 0:01:28]}  Bb4 {[%clk 0:01:37]} 18. Ne4 {[%clk 0:01:13]}  Bxe4 {[%clk 0:01:20]} 19. fxe4 {[%clk 0:01:10]}  Ng4 {[%clk 0:01:17]} 20. Qe2 {[%clk 0:01:07]}  Nxe3 {[%clk 0:01:16]} 21. Qxe3 {[%clk 0:01:08]}  Rfe8 {[%clk 0:01:05]} 22. Rad1 {[%clk 0:01:00]}  f6 {[%clk 0:01:02]} 23. Kh1 {[%clk 0:00:56]}  Rbd8 {[%clk 0:01:01]} 24. Rd3 {[%clk 0:00:53]}  Qe7 {[%clk 0:00:59]} 25. Rc1 {[%clk 0:00:49]}  Rd6 {[%clk 0:00:53]} 26. Rc4 {[%clk 0:00:49]}  Ba5 {[%clk 0:00:53]} 27. Qc1 {[%clk 0:00:40]}  Qd7 {[%clk 0:00:49]} 28. Bf3 {[%clk 0:00:19]}  Bb6 {[%clk 0:00:49]} 29. Kg2 {[%clk 0:00:18]}  Rd8 {[%clk 0:00:46]} 30. e5 {[%clk 0:00:17]}  fxe5 {[%clk 0:00:45]} 31. Bxc6 {[%clk 0:00:17]}  Qe7 {[%clk 0:00:41]} 32. d5 {[%clk 0:00:16]}  e4 {[%clk 0:00:40]} 33. Rd1 {[%clk 0:00:08]}  Rf8 {[%clk 0:00:40]} 34. Re1 {[%clk 0:00:07]}  Rf2+ {[%clk 0:00:38]} 35. Kh1 {[%clk 0:00:08]}  e3 {[%clk 0:00:38]} 36. Qd1 {[%clk 0:00:04]}  Qf6 {[%clk 0:00:36]} 37. Qg4 {[%clk 0:00:04]}  Ba5 {[%clk 0:00:30]} 38. Rg1 {[%clk 0:00:01]}  e2 {[%clk 0:00:30]} 39. Qc8+ {[%clk 0:00:01]}  Kh7 {[%clk 0:00:30]} 40. Qe8 {[%clk 0:00:02]}  Qf3+ {[%clk 0:00:27]} 41. Rg2 {[%clk 0:00:03]}  Rf1# {[%clk 0:00:28]} 0-1


[Site "https://www.chess.com"]

[Event "Titled Tuesday Blitz December 20 Early 2022"]
[White "gross-aleks"]
[Black "Tsyhanchuk_Stanislav"]
[WhiteElo "2616"]
[BlackElo "2335"]
[Result "0-1"]
[Round "01"]
[TimeControl "180+2"]
[Date "2022.12.20"]
[WhiteClock "0:01:48"]
[BlackClock "0:01:25"]

1. c4 {[%clk 0:02:56]}  c5 {[%clk 0:02:56]} 2. Nc3 {[%clk 0:02:54]}  Nc6 {[%clk 0:02:56]} 3. Nf3 {[%clk 0:02:53]}  g6 {[%clk 0:02:56]} 4. d4 {[%clk 0:02:52]}  cxd4 {[%clk 0:02:55]} 5. Nxd4 {[%clk 0:02:53]}  Bg7 {[%clk 0:02:55]} 6. Nc2 {[%clk 0:02:54]}  Nf6 {[%clk 0:02:53]} 7. g3 {[%clk 0:02:53]}  O-O {[%clk 0:02:52]} 8. Bg2 {[%clk 0:02:53]}  d6 {[%clk 0:02:50]} 9. O-O {[%clk 0:02:53]}  Bd7 {[%clk 0:02:49]} 10. b3 {[%clk 0:02:32]}  Qc8 {[%clk 0:02:39]} 11. Re1 {[%clk 0:02:28]}  Bh3 {[%clk 0:01:53]} 12. Bh1 {[%clk 0:02:27]}  Ng4 {[%clk 0:01:44]} 13. Qd3 {[%clk 0:01:48]}  Nge5 {[%clk 0:01:25]} 0-1


[Site "https://www.chess.com"]

[Event "Titled Tuesday Blitz December 20 Early 2022"]
[White "politeplayer"]
[Black "Mikusinski, Bartosz"]
[BlackFideId "1111256"]
[WhiteElo "2244"]
[BlackElo "2090"]
[Result "1/2-1/2"]
[Round "01"]
[TimeControl "180+2"]
[Date "2022.12.20"]
[WhiteClock "0:00:12"]
[BlackClock "0:00:02"]

1. e4 {[%clk 0:02:57]}  c5 {[%clk 0:02:59]} 2. Nf3 {[%clk 0:02:57]}  d6 {[%clk 0:03:00]} 3. d4 {[%clk 0:02:57]}  cxd4 {[%clk 0:03:00]} 4. Nxd4 {[%clk 0:02:58]}  Nf6 {[%clk 0:03:01]} 5. Nc3 {[%clk 0:02:57]}  g6 {[%clk 0:03:02]} 6. Be3 {[%clk 0:02:56]}  Bg7 {[%clk 0:03:03]} 7. f3 {[%clk 0:02:56]}  O-O {[%clk 0:03:04]} 8. Qd2 {[%clk 0:02:56]}  Nc6 {[%clk 0:03:04]} 9. Bc4 {[%clk 0:02:56]}  Bd7 {[%clk 0:03:05]} 10. Bb3 {[%clk 0:02:56]}  Rc8 {[%clk 0:03:05]} 11. h4 {[%clk 0:02:55]}  Ne5 {[%clk 0:03:06]} 12. O-O-O {[%clk 0:02:54]}  h5 {[%clk 0:03:06]} 13. Rhe1 {[%clk 0:02:51]}  Qa5 {[%clk 0:03:06]} 14. Kb1 {[%clk 0:02:46]}  Rxc3 {[%clk 0:03:04]} 15. Qxc3 {[%clk 0:02:43]}  Qxc3 {[%clk 0:03:03]} 16. bxc3 {[%clk 0:02:43]}  Rc8 {[%clk 0:03:04]} 17. Kb2 {[%clk 0:02:36]}  a5 {[%clk 0:03:04]} 18. a4 {[%clk 0:02:35]}  Nc4+ {[%clk 0:02:56]} 19. Bxc4 {[%clk 0:02:28]}  Rxc4 {[%clk 0:02:57]} 20. Nb3 {[%clk 0:02:25]}  Nxe4 {[%clk 0:02:46]} 21. fxe4 {[%clk 0:02:08]}  Bxc3+ {[%clk 0:02:45]} 22. Kb1 {[%clk 0:02:05]}  Bxe1 {[%clk 0:02:46]} 23. Rxe1 {[%clk 0:02:03]}  Rxe4 {[%clk 0:02:46]} 24. Nxa5 {[%clk 0:01:55]}  Bxa4 {[%clk 0:02:46]} 25. Bd2 {[%clk 0:01:35]}  Rxe1+ {[%clk 0:02:25]} 26. Bxe1 {[%clk 0:01:35]}  Bc6 {[%clk 0:02:22]} 27. g3 {[%clk 0:01:27]}  Bd5 {[%clk 0:02:19]} 28. c4 {[%clk 0:01:25]}  Be4+ {[%clk 0:02:19]} 29. Kb2 {[%clk 0:01:25]}  f6 {[%clk 0:02:14]} 30. Bf2 {[%clk 0:01:20]}  Kf7 {[%clk 0:02:14]} 31. c5 {[%clk 0:01:18]}  dxc5 {[%clk 0:02:06]} 32. Bxc5 {[%clk 0:01:18]}  Bd5 {[%clk 0:02:02]} 33. Kc3 {[%clk 0:01:15]}  e5 {[%clk 0:02:00]} 34. Nc4 {[%clk 0:01:06]}  Ke6 {[%clk 0:01:58]} 35. Ne3 {[%clk 0:01:01]}  f5 {[%clk 0:01:50]} 36. Ba7 {[%clk 0:00:57]}  f4 {[%clk 0:01:41]} 37. gxf4 {[%clk 0:00:55]}  exf4 {[%clk 0:01:33]} 38. Nxd5 {[%clk 0:00:46]}  Kxd5 {[%clk 0:01:24]} 39. Kd3 {[%clk 0:00:46]}  Ke5 {[%clk 0:01:07]} 40. Ke2 {[%clk 0:00:32]}  Ke4 {[%clk 0:01:05]} 41. Kf2 {[%clk 0:00:21]}  b5 {[%clk 0:01:04]} 42. Bc5 {[%clk 0:00:20]}  f3 {[%clk 0:00:20]} 43. Kg3 {[%clk 0:00:17]}  Kd5 {[%clk 0:00:11]} 44. Bf8 {[%clk 0:00:16]}  Ke4 {[%clk 0:00:08]} 45. Bc5 {[%clk 0:00:16]}  Kd5 {[%clk 0:00:05]} 46. Bf8 {[%clk 0:00:13]}  Ke4 {[%clk 0:00:02]} 47. Bc5 {[%clk 0:00:12]} 1/2-1/2


[Site "https://www.chess.com"]